[Event "*** Titled Tuesday 3|2 Blitz"]
[Site "Chess.com"]
[Date "2015.06.02"]
[Round "2"]
[White "GasconJR"]
[Black "MattyDPerrine"]
[Result "1-0"]
[WhiteElo "2306"]
[BlackElo "2244"]
[TimeControl "180+2"]
[EndTime "11:21:56 PDT"]
[Termination "GasconJR won by resignation"]

1. e4 {[%clk 0:02:56.4]} 1... c5 {[%clk 0:03:00.9]} 2. Nf3 {[%clk 0:02:56.8]}
2... e6 {[%clk 0:02:57.1]} 3. d4 {[%clk 0:02:56.5]} 3... cxd4 {[%clk 0:02:59]}
4. Nxd4 {[%clk 0:02:58.2]} 4... Nc6 {[%clk 0:03:00.2]} 5. Nc3 {[%clk 0:02:58.5]}
5... Qc7 {[%clk 0:03:01]} 6. Ndb5 {[%clk 0:02:58.8]} 6... Qb8 {[%clk 0:03:02.1]}
7. Be3 {[%clk 0:02:59.4]} 7... a6 {[%clk 0:03:03.5]} 8. Bb6 {[%clk 0:02:57]}
8... axb5 {[%clk 0:03:04.9]} 9. Nxb5 {[%clk 0:02:57.2]} 9... Bb4+ {[%clk
0:03:06.5]} 10. c3 {[%clk 0:02:57.7]} 10... Ba5 {[%clk 0:03:07.9]} 11. Nc7+
{[%clk 0:02:59]} 11... Qxc7 {[%clk 0:03:09.3]} 12. Bxc7 {[%clk 0:03:00.2]} 12...
Bxc7 {[%clk 0:03:11.2]} 13. Qg4 {[%clk 0:03:01.3]} 13... g6 {[%clk 0:02:47.5]}
14. Bb5 {[%clk 0:03:00.4]} 14... Nf6 {[%clk 0:01:56.1]} 15. Qf3 {[%clk
0:02:59.5]} 15... Ke7 {[%clk 0:01:55.7]} 16. O-O {[%clk 0:02:57.7]} 16... g5
{[%clk 0:01:47.3]} 17. a4 {[%clk 0:02:54.3]} 17... Ne5 {[%clk 0:01:42.3]} 18.
Qe2 {[%clk 0:02:54.2]} 18... Ng6 {[%clk 0:01:41.4]} 19. Rad1 {[%clk 0:02:31.2]}
19... d5 {[%clk 0:01:32]} 20. exd5 {[%clk 0:02:29]} 20... Nxd5 {[%clk
0:01:33.1]} 21. g3 {[%clk 0:01:54.8]} 21... Nf6 {[%clk 0:01:16.8]} 22. Qc4
{[%clk 0:01:49.2]} 22... Bd6 {[%clk 0:00:37.3]} 23. Rxd6 {[%clk 0:01:44.3]}
23... Kxd6 {[%clk 0:00:38.5]} 24. Qd4+ {[%clk 0:01:34.9]} 24... Nd5 {[%clk
0:00:26.3]} 25. c4 {[%clk 0:01:33.2]} 25... Ke7 {[%clk 0:00:21.4]} 26. cxd5
{[%clk 0:01:32.8]} 26... exd5 {[%clk 0:00:22.2]} 27. Qxd5 {[%clk 0:01:22.8]}
27... h6 {[%clk 0:00:09.9]} 28. Re1+ {[%clk 0:01:15.2]} 28... Be6 {[%clk
0:00:11.2]} 29. Qxb7+ {[%clk 0:01:16]} 29... Kf6 {[%clk 0:00:11.7]} 30. Qf3+
{[%clk 0:01:06.7]} 30... Kg7 {[%clk 0:00:12.5]} 31. b4 {[%clk 0:01:06.8]} 31...
g4 {[%clk 0:00:07.7]} 32. Qc3+ {[%clk 0:01:04.6]} 32... Kh7 {[%clk 0:00:08.9]}
33. Rxe6 {[%clk 0:00:56.8]} 33... fxe6 {[%clk 0:00:07]} 34. Qc7+ {[%clk
0:00:57]} 34... Kg8 {[%clk 0:00:08.6]} 35. Bc4 {[%clk 0:00:55.3]} 35... Nf8
{[%clk 0:00:09.1]} 36. Qc6 {[%clk 0:00:45.7]} 36... Rd8 {[%clk 0:00:05.2]} 37.
a5 {[%clk 0:00:40.7]} 37... Rh7 {[%clk 0:00:04.6]} 38. b5 {[%clk 0:00:41]} 38...
Rhd7 {[%clk 0:00:02.6]} 39. b6 {[%clk 0:00:37.3]} 39... Rd6 {[%clk 0:00:04]} 40.
Qe4 {[%clk 0:00:35.6]} 40... Rd4 {[%clk 0:00:04.6]} 41. Bxe6+ {[%clk 0:00:36.3]}
41... Nxe6 {[%clk 0:00:06.1]} 42. Qxe6+ {[%clk 0:00:37.4]} 42... Kg7 {[%clk
0:00:08]} 43. b7 {[%clk 0:00:36.6]} 43... R4d6 {[%clk 0:00:08.7]} 44. Qxd6
{[%clk 0:00:36.5]} 44... Rxd6 {[%clk 0:00:10.6]} 45. b8=Q {[%clk 0:00:37.2]}
45... Rd1+ {[%clk 0:00:12.5]} 46. Kg2 {[%clk 0:00:38.1]} 46... Rd7 {[%clk
0:00:12]} 47. a6 {[%clk 0:00:38.1]} 1-0

[Event "*** Titled Tuesday 3|2 Blitz"]
[Site "Chess.com"]
[Date "2015.06.02"]
[Round "2"]
[White "jcibarra"]
[Black "TheLancer"]
[Result "1-0"]
[WhiteElo "2542"]
[BlackElo "2369"]
[TimeControl "180+2"]
[EndTime "11:22:04 PDT"]
[Termination "jcibarra won by resignation"]

1. e4 {[%clk 0:02:59.8]} 1... c5 {[%clk 0:03:00.8]} 2. Nf3 {[%clk 0:03:00.8]}
2... g6 {[%clk 0:03:02.2]} 3. d4 {[%clk 0:03:01.4]} 3... cxd4 {[%clk 0:03:04.1]}
4. Nxd4 {[%clk 0:03:03.3]} 4... Bg7 {[%clk 0:03:05.2]} 5. Nc3 {[%clk 0:03:04.1]}
5... Nc6 {[%clk 0:03:06.3]} 6. Be3 {[%clk 0:03:05.1]} 6... Nf6 {[%clk
0:03:07.9]} 7. Bc4 {[%clk 0:03:05.6]} 7... O-O {[%clk 0:03:08.9]} 8. Bb3 {[%clk
0:03:05.6]} 8... a5 {[%clk 0:03:10.2]} 9. O-O {[%clk 0:03:04.2]} 9... Nxd4
{[%clk 0:02:59.3]} 10. Bxd4 {[%clk 0:03:02.3]} 10... d6 {[%clk 0:03:00.4]} 11.
Qe2 {[%clk 0:02:44]} 11... Bd7 {[%clk 0:02:59.2]} 12. a4 {[%clk 0:02:37]} 12...
Bc6 {[%clk 0:02:59.8]} 13. Rad1 {[%clk 0:02:35.1]} 13... Nd7 {[%clk 0:03:00.5]}
14. Bxg7 {[%clk 0:02:15.7]} 14... Kxg7 {[%clk 0:03:00.6]} 15. Qe3 {[%clk
0:02:13.6]} 15... Qb6 {[%clk 0:02:52]} 16. Qg5 {[%clk 0:02:06.4]} 16... f6
{[%clk 0:02:17]} 17. Qd2 {[%clk 0:01:53.2]} 17... Nc5 {[%clk 0:02:14.6]} 18. Qe3
{[%clk 0:01:54]} 18... Qb4 {[%clk 0:01:50.9]} 19. Rd4 {[%clk 0:01:52.2]} 19...
Qb6 {[%clk 0:01:51.5]} 20. Rc4 {[%clk 0:01:44.3]} 20... Nd7 {[%clk 0:01:44.6]}
21. Rd4 {[%clk 0:01:37.8]} 21... Nc5 {[%clk 0:01:39.3]} 22. Rd2 {[%clk
0:01:35.9]} 22... Qb4 {[%clk 0:01:38.1]} 23. Nd5 {[%clk 0:01:01.7]} 23... Bxd5
{[%clk 0:01:09.9]} 24. exd5 {[%clk 0:00:58.9]} 24... Nxb3 {[%clk 0:00:49.9]} 25.
cxb3 {[%clk 0:00:59.5]} 25... Rf7 {[%clk 0:00:29.8]} 26. Rc1 {[%clk 0:01:00.5]}
26... Ra6 {[%clk 0:00:14.1]} 27. Rc7 {[%clk 0:00:57.5]} 27... Rb6 {[%clk
0:00:14.3]} 28. Rxe7 {[%clk 0:00:53.3]} 28... Qxb3 {[%clk 0:00:13.8]} 29. Rxf7+
{[%clk 0:00:51]} 29... Kxf7 {[%clk 0:00:15.7]} 30. Qe6+ {[%clk 0:00:52]} 30...
Kg7 {[%clk 0:00:17.1]} 31. Qe7+ {[%clk 0:00:52.8]} 31... Kg8 {[%clk 0:00:15.8]}
32. Qxf6 {[%clk 0:00:41.3]} 32... Qxa4 {[%clk 0:00:15.9]} 33. Qe6+ {[%clk
0:00:39.2]} 33... Kg7 {[%clk 0:00:15.3]} 34. Qe7+ {[%clk 0:00:40.2]} 34... Kh6
{[%clk 0:00:15.5]} 35. Re2 {[%clk 0:00:39.9]} 35... Qd1+ {[%clk 0:00:14.6]} 36.
Re1 {[%clk 0:00:40.5]} 36... Qd4 {[%clk 0:00:15.2]} 37. Qf8+ {[%clk 0:00:33.6]}
37... Kh5 {[%clk 0:00:11.5]} 38. Qf7 {[%clk 0:00:29.5]} 38... Rxb2 {[%clk
0:00:09.3]} 39. Qxh7+ {[%clk 0:00:30.2]} 39... Kg5 {[%clk 0:00:10.6]} 40. h4+
{[%clk 0:00:29.8]} 40... Kf5 {[%clk 0:00:10.3]} 41. Qd7+ {[%clk 0:00:28.5]}
41... Kf4 {[%clk 0:00:08.1]} 42. Qf7+ {[%clk 0:00:27.3]} 42... Kg4 {[%clk
0:00:07.3]} 43. Qf3+ {[%clk 0:00:27.7]} 43... Kxh4 {[%clk 0:00:07.2]} 44. Re4+
{[%clk 0:00:28.1]} 1-0

[Event "*** Titled Tuesday 3|2 Blitz"]
[Site "Chess.com"]
[Date "2015.06.02"]
[Round "2"]
[White "Theladies"]
[Black "ChadaevNikolay"]
[Result "0-1"]
[WhiteElo "1592"]
[BlackElo "2643"]
[TimeControl "180+2"]
[EndTime "11:22:25 PDT"]
[Termination "ChadaevNikolay won on time"]

1. d4 {[%clk 0:02:50]} 1... Nf6 {[%clk 0:03:00.1]} 2. Bf4 {[%clk 0:02:43.4]}
2... g6 {[%clk 0:03:00.3]} 3. e3 {[%clk 0:02:40.2]} 3... Bg7 {[%clk 0:03:01.6]}
4. Nf3 {[%clk 0:02:41.1]} 4... O-O {[%clk 0:03:03.2]} 5. h3 {[%clk 0:02:42.2]}
5... d6 {[%clk 0:03:04.7]} 6. Be2 {[%clk 0:02:43.1]} 6... Nc6 {[%clk 0:03:06.1]}
7. O-O {[%clk 0:02:44.4]} 7... Bf5 {[%clk 0:03:07]} 8. c3 {[%clk 0:02:45.7]}
8... Re8 {[%clk 0:03:06.4]} 9. a4 {[%clk 0:02:46.6]} 9... a5 {[%clk 0:03:04]}
10. Na3 {[%clk 0:02:46.1]} 10... h6 {[%clk 0:03:03.6]} 11. Nb5 {[%clk
0:02:45.2]} 11... Ne4 {[%clk 0:03:02.3]} 12. Bh2 {[%clk 0:02:45.6]} 12... Rc8
{[%clk 0:02:56.6]} 13. d5 {[%clk 0:02:43.4]} 13... Ne5 {[%clk 0:02:51]} 14. Nxe5
{[%clk 0:02:25.5]} 14... Bxe5 {[%clk 0:02:51.4]} 15. Bxe5 {[%clk 0:02:24.1]}
15... dxe5 {[%clk 0:02:51.9]} 16. Bg4 {[%clk 0:01:18.1]} 16... Bxg4 {[%clk
0:02:48.7]} 17. Qxg4 {[%clk 0:01:20]} 17... Nd6 {[%clk 0:02:49.1]} 18. Rfd1
{[%clk 0:01:11.7]} 18... Kg7 {[%clk 0:02:45.6]} 19. Qg3 {[%clk 0:01:07.3]} 19...
f6 {[%clk 0:02:45.1]} 20. Qh4 {[%clk 0:01:04.4]} 20... Rf8 {[%clk 0:02:41.8]}
21. Qg4 {[%clk 0:00:43.7]} 21... h5 {[%clk 0:02:37.1]} 22. Qe6 {[%clk
0:00:44.1]} 22... Nf7 {[%clk 0:02:37.3]} 23. h4 {[%clk 0:00:43.5]} 23... Nd6
{[%clk 0:02:38.3]} 24. b3 {[%clk 0:00:42.5]} 24... Ra8 {[%clk 0:02:22.1]} 25. c4
{[%clk 0:00:40.6]} 25... Ne4 {[%clk 0:02:21.7]} 26. Rab1 {[%clk 0:00:19.1]}
26... b6 {[%clk 0:02:19.6]} 27. Qc6 {[%clk 0:00:18.7]} 27... Rc8 {[%clk
0:02:12.3]} 28. Na7 {[%clk 0:00:19.7]} 28... Rb8 {[%clk 0:02:07.5]} 29. Nb5
{[%clk 0:00:16.1]} 29... Kh7 {[%clk 0:02:08]} 30. Nxc7 {[%clk 0:00:09.4]} 30...
Rc8 {[%clk 0:02:06.6]} 31. Ne6 {[%clk 0:00:10.1]} 31... Rxc6 {[%clk 0:02:07.8]}
32. Nxd8 {[%clk 0:00:11]} 32... Rc8 {[%clk 0:02:08.8]} 33. Ne6 {[%clk
0:00:12.2]} 33... Rfe8 {[%clk 0:02:09.8]} 34. Rd3 {[%clk 0:00:13.1]} 34... Kh6
{[%clk 0:02:08.6]} 35. f3 {[%clk 0:00:14.5]} 35... Nd6 {[%clk 0:02:09.5]} 36.
Rbd1 {[%clk 0:00:15.6]} 36... g5 {[%clk 0:02:09.5]} 37. hxg5+ {[%clk 0:00:16.5]}
37... fxg5 {[%clk 0:02:10.8]} 38. Kf2 {[%clk 0:00:17.4]} 38... Kg6 {[%clk
0:02:11.8]} 39. Ke2 {[%clk 0:00:18.7]} 39... h4 {[%clk 0:02:12.9]} 40. f4 {[%clk
0:00:19.9]} 40... e4 {[%clk 0:02:10]} 41. Rd4 {[%clk 0:00:18]} 41... g4 {[%clk
0:02:09.9]} 42. R4d2 {[%clk 0:00:11.1]} 42... Rh8 {[%clk 0:02:09.8]} 43. Rh1
{[%clk 0:00:11.3]} 43... Rh5 {[%clk 0:02:06.3]} 44. Kf2 {[%clk 0:00:10]} 44...
Kf6 {[%clk 0:02:06]} 45. g3 {[%clk 0:00:08.1]} 45... hxg3+ {[%clk 0:02:04.9]}
46. Kg2 {[%clk 0:00:08.7]} 46... Rxh1 {[%clk 0:02:05.4]} 47. Kxh1 {[%clk
0:00:10.6]} 47... Rh8+ {[%clk 0:02:06.4]} 48. Kg1 {[%clk 0:00:11.9]} 48... Nf5
{[%clk 0:02:07.4]} 49. Ng5 {[%clk 0:00:11.3]} 49... Nxe3 {[%clk 0:02:04.5]} 50.
Nxe4+ {[%clk 0:00:11.6]} 50... Kf5 {[%clk 0:02:05.7]} 51. Nxg3+ {[%clk
0:00:11.5]} 51... Kxf4 {[%clk 0:02:06.9]} 52. Nf1 {[%clk 0:00:05.2]} 52... Nf5
{[%clk 0:02:04.6]} 53. Rf2+ {[%clk 0:00:05.7]} 53... Kg5 {[%clk 0:02:05.4]} 54.
Re2 {[%clk 0:00:07.4]} 54... Rh6 {[%clk 0:02:03]} 55. Re5 {[%clk 0:00:03.6]}
55... Kf4 {[%clk 0:02:02.7]} 56. Re2 {[%clk 0:00:03.2]} 56... Rh3 {[%clk
0:02:03.3]} 57. Rf2+ {[%clk 0:00:04.6]} 57... Kg5 {[%clk 0:02:03.7]} 58. Nd2
{[%clk 0:00:06.5]} 58... Re3 {[%clk 0:02:01.3]} 59. Kf1 {[%clk 0:00:05.9]} 59...
g3 {[%clk 0:02:01.7]} 60. Re2 {[%clk 0:00:05]} 60... Rd3 {[%clk 0:01:58]} 61.
Ne4+ {[%clk 0:00:04.7]} 61... Kf4 {[%clk 0:01:58.9]} 62. Kg1 {[%clk 0:00:02.3]}
62... Rxb3 {[%clk 0:01:53.2]} 63. Nd2 {[%clk 0:00:02.3]} 63... Re3 {[%clk
0:01:50.1]} 64. Rxe3 {[%clk 0:00:02]} 64... Nxe3 {[%clk 0:01:50.1]} 0-1

[Event "*** Titled Tuesday 3|2 Blitz"]
[Site "Chess.com"]
[Date "2015.06.02"]
[Round "2"]
[White "alexsuper1987"]
[Black "arnacman"]
[Result "1/2-1/2"]
[WhiteElo "2076"]
[BlackElo "2265"]
[TimeControl "180+2"]
[EndTime "11:22:37 PDT"]
[Termination "Game drawn - insufficient material"]

1. e4 {[%clk 0:03:01.9]} 1... c5 {[%clk 0:03:00.3]} 2. Nf3 {[%clk 0:03:02.4]}
2... d6 {[%clk 0:03:01.4]} 3. d4 {[%clk 0:03:04]} 3... cxd4 {[%clk 0:03:01.5]}
4. Nxd4 {[%clk 0:03:05.9]} 4... Nf6 {[%clk 0:03:02.4]} 5. Nc3 {[%clk 0:03:07.5]}
5... a6 {[%clk 0:03:03.7]} 6. Be3 {[%clk 0:03:09]} 6... e5 {[%clk 0:03:03.6]} 7.
Nb3 {[%clk 0:03:09]} 7... Be7 {[%clk 0:03:04.5]} 8. f3 {[%clk 0:03:10.6]} 8...
Be6 {[%clk 0:03:04.4]} 9. Qd2 {[%clk 0:03:12]} 9... h5 {[%clk 0:03:04]} 10.
O-O-O {[%clk 0:03:11.3]} 10... Nbd7 {[%clk 0:03:04.7]} 11. Kb1 {[%clk
0:02:31.6]} 11... Rc8 {[%clk 0:03:04.3]} 12. Rg1 {[%clk 0:01:58.8]} 12... b5
{[%clk 0:03:03.6]} 13. a3 {[%clk 0:01:52.9]} 13... Qc7 {[%clk 0:03:01.7]} 14.
Be2 {[%clk 0:01:47.2]} 14... Nb6 {[%clk 0:02:57]} 15. Bxb6 {[%clk 0:01:37.9]}
15... Qxb6 {[%clk 0:02:57.2]} 16. g4 {[%clk 0:01:39.2]} 16... hxg4 {[%clk
0:02:56.8]} 17. fxg4 {[%clk 0:01:40.3]} 17... Kf8 {[%clk 0:02:39.9]} 18. g5
{[%clk 0:01:37.1]} 18... Nh5 {[%clk 0:02:37.5]} 19. Bxh5 {[%clk 0:01:16.9]}
19... Rxh5 {[%clk 0:02:37.3]} 20. g6 {[%clk 0:01:18.3]} 20... f6 {[%clk
0:02:33.3]} 21. Nd5 {[%clk 0:01:17.6]} 21... Qc6 {[%clk 0:02:25.4]} 22. Na5
{[%clk 0:01:07.3]} 22... Qc5 {[%clk 0:02:11.1]} 23. Nb7 {[%clk 0:01:06.5]} 23...
Qd4 {[%clk 0:02:04.7]} 24. Nxe7 {[%clk 0:00:40.2]} 24... Qxd2 {[%clk 0:01:58]}
25. Rxd2 {[%clk 0:00:42.1]} 25... Kxe7 {[%clk 0:01:58.6]} 26. Nxd6 {[%clk
0:00:41.4]} 26... Rd8 {[%clk 0:01:56.6]} 27. Rgd1 {[%clk 0:00:40.9]} 27... Rhh8
{[%clk 0:01:52]} 28. Nf5+ {[%clk 0:00:33.9]} 28... Bxf5 {[%clk 0:01:52.1]} 29.
exf5 {[%clk 0:00:35.8]} 29... Rxd2 {[%clk 0:01:51.3]} 30. Rxd2 {[%clk
0:00:37.7]} 30... Rh4 {[%clk 0:01:43.3]} 31. b3 {[%clk 0:00:37]} 31... Rf4
{[%clk 0:01:43.4]} 32. Kb2 {[%clk 0:00:27]} 32... Rxf5 {[%clk 0:01:43.8]} 33.
Rg2 {[%clk 0:00:24.6]} 33... Ke6 {[%clk 0:01:43.5]} 34. c4 {[%clk 0:00:25.8]}
34... bxc4 {[%clk 0:01:43.5]} 35. bxc4 {[%clk 0:00:27.7]} 35... Rf4 {[%clk
0:01:44.5]} 36. Kb3 {[%clk 0:00:28.5]} 36... e4 {[%clk 0:01:44.8]} 37. Kc3
{[%clk 0:00:29.2]} 37... Ke5 {[%clk 0:01:45]} 38. c5 {[%clk 0:00:30.4]} 38...
Kd5 {[%clk 0:01:42.1]} 39. c6 {[%clk 0:00:30.1]} 39... Kxc6 {[%clk 0:01:42.6]}
40. Kd4 {[%clk 0:00:32]} 40... f5 {[%clk 0:01:43.7]} 41. Ke5 {[%clk 0:00:33.3]}
41... Rf3 {[%clk 0:01:44.1]} 42. h4 {[%clk 0:00:32.5]} 42... e3 {[%clk
0:01:44.5]} 43. h5 {[%clk 0:00:33.7]} 43... Rf2 {[%clk 0:01:44.3]} 44. Rg1
{[%clk 0:00:27.4]} 44... Rh2 {[%clk 0:01:42.6]} 45. Kxf5 {[%clk 0:00:26.4]}
45... Rxh5+ {[%clk 0:01:43.1]} 46. Kf4 {[%clk 0:00:27.5]} 46... Kd5 {[%clk
0:01:37.6]} 47. Kxe3 {[%clk 0:00:25.7]} 47... Rh3+ {[%clk 0:01:37.8]} 48. Kf4
{[%clk 0:00:24.3]} 48... Rxa3 {[%clk 0:01:38]} 49. Re1 {[%clk 0:00:25.3]} 49...
Kd6 {[%clk 0:01:37.7]} 50. Re8 {[%clk 0:00:26.4]} 50... Ra4+ {[%clk 0:01:36]}
51. Kf5 {[%clk 0:00:26]} 51... Ra5+ {[%clk 0:01:36.3]} 52. Kf4 {[%clk 0:00:24]}
52... Rb5 {[%clk 0:01:36]} 53. Ra8 {[%clk 0:00:23]} 53... a5 {[%clk 0:01:35.3]}
54. Ra7 {[%clk 0:00:24.2]} 54... Ke6 {[%clk 0:01:34.1]} 55. Rxg7 {[%clk
0:00:20.6]} 55... Kf6 {[%clk 0:01:34.8]} 56. Rg8 {[%clk 0:00:22.2]} 56... Rb4+
{[%clk 0:01:33.2]} 57. Ke3 {[%clk 0:00:22.3]} 57... Rg4 {[%clk 0:01:33.2]} 58.
Ra8 {[%clk 0:00:19.8]} 58... a4 {[%clk 0:01:32.7]} 59. Kd3 {[%clk 0:00:17.8]}
59... Kxg6 {[%clk 0:01:32.2]} 60. Kc3 {[%clk 0:00:17.8]} 60... Kf6 {[%clk
0:01:30]} 61. Kb2 {[%clk 0:00:17.2]} 61... Ke5 {[%clk 0:01:29.4]} 62. Ka3 {[%clk
0:00:17.7]} 62... Kd5 {[%clk 0:01:30.4]} 63. Rxa4 {[%clk 0:00:18.4]} 63... Rg3+
{[%clk 0:01:31.7]} 64. Kb2 {[%clk 0:00:19.5]} 64... Kc5 {[%clk 0:01:32.5]} 65.
Rf4 {[%clk 0:00:19.5]} 65... Rd3 {[%clk 0:01:32.9]} 66. Kc2 {[%clk 0:00:20.6]}
66... Rd4 {[%clk 0:01:33.5]} 67. Rxd4 {[%clk 0:00:21.5]} 67... Kxd4 {[%clk
0:01:34.5]} 1/2-1/2

[Event "*** Titled Tuesday 3|2 Blitz"]
[Site "Chess.com"]
[Date "2015.06.02"]
[Round "2"]
[White "AnastasiaProtopopova"]
[Black "ilmago"]
[Result "1-0"]
[WhiteElo "1948"]
[BlackElo "1866"]
[TimeControl "180+2"]
[EndTime "11:22:39 PDT"]
[Termination "AnastasiaProtopopova won by checkmate"]

1. Nf3 {[%clk 0:02:54.3]} 1... Nf6 {[%clk 0:02:59.7]} 2. c4 {[%clk 0:02:51.3]}
2... g6 {[%clk 0:03:00.1]} 3. Nc3 {[%clk 0:02:50.2]} 3... Bg7 {[%clk 0:02:57.9]}
4. e4 {[%clk 0:02:50.5]} 4... d6 {[%clk 0:02:57.1]} 5. d4 {[%clk 0:02:51.8]}
5... O-O {[%clk 0:02:57.6]} 6. Be2 {[%clk 0:02:53.2]} 6... e5 {[%clk 0:02:57.7]}
7. O-O {[%clk 0:02:53.5]} 7... Nc6 {[%clk 0:02:57.9]} 8. d5 {[%clk 0:02:53.8]}
8... Ne7 {[%clk 0:02:58.8]} 9. b4 {[%clk 0:02:55]} 9... a5 {[%clk 0:02:58.3]}
10. Ba3 {[%clk 0:02:55]} 10... axb4 {[%clk 0:02:56.5]} 11. Bxb4 {[%clk
0:02:55.3]} 11... Nh5 {[%clk 0:02:57]} 12. g3 {[%clk 0:02:43.3]} 12... f5 {[%clk
0:02:50.8]} 13. Ng5 {[%clk 0:02:42.3]} 13... Nf6 {[%clk 0:02:44.6]} 14. Bf3
{[%clk 0:02:24]} 14... h6 {[%clk 0:02:44.4]} 15. Ne6 {[%clk 0:02:24.7]} 15...
Bxe6 {[%clk 0:02:43.6]} 16. dxe6 {[%clk 0:02:25.9]} 16... Nc6 {[%clk 0:02:27]}
17. Rb1 {[%clk 0:02:04.2]} 17... Nd4 {[%clk 0:02:23.5]} 18. Nd5 {[%clk
0:01:49.8]} 18... Nxe6 {[%clk 0:01:51.6]} 19. exf5 {[%clk 0:01:41.7]} 19... gxf5
{[%clk 0:01:50.9]} 20. Nxf6+ {[%clk 0:01:40.5]} 20... Qxf6 {[%clk 0:01:46.2]}
21. Bxb7 {[%clk 0:01:41.4]} 21... Rxa2 {[%clk 0:01:46.3]} 22. Bd5 {[%clk
0:01:36.1]} 22... Kh8 {[%clk 0:01:45.5]} 23. c5 {[%clk 0:01:30.1]} 23... dxc5
{[%clk 0:01:25.1]} 24. Bxa2 {[%clk 0:01:29.2]} 24... cxb4 {[%clk 0:01:25.5]} 25.
Rxb4 {[%clk 0:01:27.7]} 25... f4 {[%clk 0:01:26.1]} 26. Qg4 {[%clk 0:01:20]}
26... Nd4 {[%clk 0:01:18.1]} 27. Rb7 {[%clk 0:01:10]} 27... Qc6 {[%clk
0:01:11.3]} 28. Rb3 {[%clk 0:00:41.7]} 28... Nxb3 {[%clk 0:01:07.5]} 29. Bxb3
{[%clk 0:00:42.4]} 29... Rf6 {[%clk 0:01:01.2]} 30. Rd1 {[%clk 0:00:38.8]} 30...
fxg3 {[%clk 0:00:57.5]} 31. Rd8+ {[%clk 0:00:32.6]} 31... Bf8 {[%clk 0:00:57.3]}
32. hxg3 {[%clk 0:00:26.4]} 32... Qc1+ {[%clk 0:00:49.3]} 33. Kg2 {[%clk
0:00:19.6]} 33... Qg5 {[%clk 0:00:48.8]} 34. Qc4 {[%clk 0:00:19.2]} 34... Qg7
{[%clk 0:00:38.9]} 35. Rd7 {[%clk 0:00:18.5]} 35... Qg6 {[%clk 0:00:31.3]} 36.
Rxc7 {[%clk 0:00:17.7]} 36... e4 {[%clk 0:00:30.6]} 37. Rc8 {[%clk 0:00:16.2]}
37... e3 {[%clk 0:00:26.6]} 38. fxe3 {[%clk 0:00:13.9]} 38... h5 {[%clk
0:00:25.5]} 39. Qd4 {[%clk 0:00:13.8]} 39... Kg7 {[%clk 0:00:20.6]} 40. Rc7+
{[%clk 0:00:13.3]} 40... Kh6 {[%clk 0:00:20.4]} 41. Bc2 {[%clk 0:00:10.8]} 41...
Rd6 {[%clk 0:00:10.8]} 42. Qf4+ {[%clk 0:00:07.7]} 42... Qg5 {[%clk 0:00:07.5]}
43. Rh7# {[%clk 0:00:08]} 1-0

[Event "*** Titled Tuesday 3|2 Blitz"]
[Site "Chess.com"]
[Date "2015.06.02"]
[Round "2"]
[White "GMHess"]
[Black "9ShMat2"]
[Result "0-1"]
[WhiteElo "2474"]
[BlackElo "2481"]
[TimeControl "180+2"]
[EndTime "11:23:05 PDT"]
[Termination "9ShMat2 won by checkmate"]

1. b3 {[%clk 0:03:01.9]} 1... e5 {[%clk 0:02:53.3]} 2. Bb2 {[%clk 0:03:03.3]}
2... Nc6 {[%clk 0:02:55.2]} 3. e3 {[%clk 0:03:02.7]} 3... Nf6 {[%clk 0:02:56.6]}
4. Bb5 {[%clk 0:03:03]} 4... d6 {[%clk 0:02:57.3]} 5. Nf3 {[%clk 0:03:00.5]}
5... Be7 {[%clk 0:02:57.1]} 6. d4 {[%clk 0:03:00.9]} 6... e4 {[%clk 0:02:49.6]}
7. Nfd2 {[%clk 0:02:57.6]} 7... O-O {[%clk 0:02:50.6]} 8. O-O {[%clk 0:02:55]}
8... Bd7 {[%clk 0:02:45]} 9. Be2 {[%clk 0:02:49.2]} 9... d5 {[%clk 0:02:43.1]}
10. c4 {[%clk 0:02:49]} 10... Bf5 {[%clk 0:02:26.3]} 11. Nc3 {[%clk 0:02:38.7]}
11... Bb4 {[%clk 0:02:22.6]} 12. Nxd5 {[%clk 0:02:32.8]} 12... Nxd5 {[%clk
0:02:08.4]} 13. cxd5 {[%clk 0:02:34.7]} 13... Ne7 {[%clk 0:02:10.1]} 14. a3
{[%clk 0:02:23.2]} 14... Bxd2 {[%clk 0:02:11]} 15. Qxd2 {[%clk 0:02:25.1]} 15...
Nxd5 {[%clk 0:02:11.7]} 16. b4 {[%clk 0:02:13.5]} 16... c6 {[%clk 0:02:12.4]}
17. Rac1 {[%clk 0:02:13.7]} 17... Qg5 {[%clk 0:02:08.8]} 18. Rfe1 {[%clk
0:01:37.6]} 18... a6 {[%clk 0:02:06.1]} 19. Rc5 {[%clk 0:01:26.1]} 19... Rfe8
{[%clk 0:01:58.8]} 20. Bc1 {[%clk 0:01:12.9]} 20... Rad8 {[%clk 0:01:54.6]} 21.
f4 {[%clk 0:00:58.4]} 21... exf3 {[%clk 0:01:45.1]} 22. Bxf3 {[%clk 0:00:57.7]}
22... Be4 {[%clk 0:01:46.5]} 23. Qf2 {[%clk 0:00:45.9]} 23... Qg6 {[%clk
0:01:37.9]} 24. Bd2 {[%clk 0:00:39]} 24... Bxf3 {[%clk 0:01:24.4]} 25. Qxf3
{[%clk 0:00:39.6]} 25... Nf6 {[%clk 0:01:26]} 26. Rf1 {[%clk 0:00:34.1]} 26...
Ne4 {[%clk 0:01:24.5]} 27. Be1 {[%clk 0:00:20.4]} 27... Nxc5 {[%clk 0:01:20]}
28. bxc5 {[%clk 0:00:18.4]} 28... Rd7 {[%clk 0:01:17.3]} 29. Bg3 {[%clk
0:00:17.2]} 29... Qe4 {[%clk 0:01:08.1]} 30. Bf4 {[%clk 0:00:18.1]} 30... f6
{[%clk 0:01:01.7]} 31. h4 {[%clk 0:00:15.2]} 31... Qxf3 {[%clk 0:00:56]} 32.
gxf3 {[%clk 0:00:17.1]} 32... g6 {[%clk 0:00:54]} 33. Kf2 {[%clk 0:00:18.2]}
33... Kf7 {[%clk 0:00:52.6]} 34. Rb1 {[%clk 0:00:15.5]} 34... Ke6 {[%clk
0:00:50.5]} 35. Ke2 {[%clk 0:00:15.5]} 35... Kf5 {[%clk 0:00:49]} 36. Kd3 {[%clk
0:00:12.4]} 36... g5 {[%clk 0:00:47.2]} 37. hxg5 {[%clk 0:00:11.3]} 37... fxg5
{[%clk 0:00:49.1]} 38. Bd6 {[%clk 0:00:12.6]} 38... h5 {[%clk 0:00:46.9]} 39.
Rh1 {[%clk 0:00:09.9]} 39... Rh7 {[%clk 0:00:40.9]} 40. e4+ {[%clk 0:00:10.5]}
40... Kg6 {[%clk 0:00:41.3]} 41. d5 {[%clk 0:00:10]} 41... Rf7 {[%clk
0:00:37.4]} 42. Rh3 {[%clk 0:00:07.4]} 42... g4 {[%clk 0:00:34.6]} 43. fxg4
{[%clk 0:00:09.3]} 43... hxg4 {[%clk 0:00:36]} 44. Rh1 {[%clk 0:00:10.4]} 44...
Rf3+ {[%clk 0:00:34]} 45. Kd4 {[%clk 0:00:11.5]} 45... Rxa3 {[%clk 0:00:31.8]}
46. Rb1 {[%clk 0:00:11.9]} 46... cxd5 {[%clk 0:00:28.9]} 47. exd5 {[%clk
0:00:12.1]} 47... Rae3 {[%clk 0:00:26.3]} 48. c6 {[%clk 0:00:10.4]} 48... b6
{[%clk 0:00:26.9]} 49. Rxb6 {[%clk 0:00:04.4]} 49... R8e4+ {[%clk 0:00:27.1]}
50. Kc5 {[%clk 0:00:05.9]} 50... Rc3# {[%clk 0:00:28.8]} 0-1